fUST/lending_fUST_20260111
["ID","MTS","AMOUNT","RATE_DAILY","PERIOD"]
[401326490,1768139438818,-50000.0,9.495e-05,2]
[401326491,1768139438827,-274.62,9.6e-05,2]
[401326492,1768139438837,-3176.86810458,9.6e-05,2]
[401326493,1768139438847,-300.0,9.687e-05,2]
[401326494,1768139438856,-300.0,9.687e-05,2]
[401326495,1768139438866,-300.0,9.687e-05,2]
[401326496,1768139438875,-300.0,9.687e-05,2]
[401326497,1768139438884,-300.0,9.687e-05,2]
[401326498,1768139438894,-300.0,9.687e-05,2]
[401326499,1768139438904,-300.0,9.687e-05,2]
[401326500,1768139438913,-300.0,9.687e-05,2]
[401326501,1768139438922,-300.0,9.687e-05,2]
[401326502,1768139438932,-300.0,9.687e-05,2]
[401326503,1768139438941,-300.0,9.687e-05,2]
[401326504,1768139438951,-300.0,9.687e-05,2]
[401326505,1768139438961,-300.0,9.687e-05,2]
[401326506,1768139438971,-300.0,9.687e-05,2]
[401326507,1768139438981,-300.0,9.687e-05,2]
[401326508,1768139438990,-600.0,9.687e-05,2]
[401326509,1768139438999,-500.0,9.687e-05,2]
[401326510,1768139439008,-500.0,9.961e-05,2]
[401326511,1768139439017,-274.62,0.000101,2]
[401326512,1768139439132,-500.0,0.00010235,2]
[401326513,1768139439147,-420.0,0.00010337,2]
[401326514,1768139439156,-274.62,0.000106,2]
[401326515,1768139439166,-720.0,0.00010656,2]
[401326516,1768139439176,-500.0,0.00010783,2]
[401326517,1768139439194,-151.0,0.00011,2]
[401326518,1768139439206,-151.0,0.00011,2]
[401326519,1768139439217,-500.0,0.00011057,2]
[401326520,1768139439227,-290.78735628,0.00011152,2]
[401326521,1768139439238,-274.62,0.000112,2]
[401326522,1768139439247,-500.0,0.00011331,2]
[401326523,1768139439257,-587.0,0.0001137,2]
[401326524,1768139439267,-500.0,0.00011605,2]
[401326525,1768139439277,-274.62,0.000117,2]
[401326526,1768139439287,-864.0,0.00011721,2]
[401326527,1768139439297,-300.2587553,0.00011874,2]
[401326528,1768139439307,-500.0,0.00011879,2]
[401326529,1768139439318,-500.0,0.00011906,2]
[401326530,1768139439328,-1423.0,0.00011906,2]
[401326531,1768139439339,-500.0,0.00011906,2]
[401326532,1768139439350,-500.0,0.00011906,2]
[401326533,1768139439361,-500.0,0.00011906,2]
[401326534,1768139439371,-500.0,0.00011906,2]
[401326535,1768139439381,-176.23516734,0.00011906,2]
[401326536,1768139439391,-171.65605742,0.00011906,2]
[401326537,1768139439401,-500.0,0.00011906,2]
[401326538,1768139439412,-500.0,0.00011906,2]
[401326539,1768139439422,-154.30171575,0.00011906,2]
[401326540,1768139439432,-250.0,0.00012024,2]
[401326541,1768139439443,-500.0,0.00012043,2]
[401326542,1768139439453,-187.35985221,0.00012043,2]
[401326543,1768139439463,-1423.0,0.00012043,2]
[401326544,1768139439474,-500.0,0.00012043,2]
[401326545,1768139439485,-503.05659276,0.00012043,2]
[401326546,1768139439495,-500.0,0.00012043,2]
[401326547,1768139439504,-598.52490689,0.00012043,2]
[401326548,1768139439514,-500.0,0.00012043,2]
[401326549,1768139439524,-500.0,0.00012043,2]
[401326550,1768139439534,-201.95802809,0.00012043,2]
[401326551,1768139439544,-500.0,0.00012153,2]
[401326552,1768139439553,-500.0,0.0001218,2]
[401326553,1768139439563,-163.14839871,0.0001218,2]
[401326554,1768139439573,-1423.0,0.0001218,2]
[401326555,1768139439582,-500.0,0.0001218,2]
[401326556,1768139439592,-179.07075974,0.0001218,2]
[401326557,1768139439601,-500.0,0.0001218,2]
[401326558,1768139439611,-500.0,0.0001218,2]
[401326559,1768139439621,-500.0,0.0001218,2]
[401326560,1768139439633,-274.62,0.000122,2]
[401326561,1768139439643,-500.0,0.00012317,2]
[401326562,1768139439652,-1423.0,0.00012317,2]
[401326563,1768139439662,-500.0,0.00012317,2]
[401326564,1768139439672,-500.0,0.00012317,2]
[401326565,1768139439681,-500.0,0.00012317,2]
[401326566,1768139439695,-250.0,0.00012317,2]
[401326567,1768139439705,-1059.59,0.00012329,2]
[401326568,1768139439715,-1256.04,0.00012329,2]
[401326569,1768139439724,-1046.7,0.00012329,2]
[401326570,1768139439734,-872.25,0.00012329,2]
[401326571,1768139439743,-726.87,0.00012329,2]
[401326572,1768139439752,-605.73,0.00012329,2]
[401326573,1768139439761,-504.77,0.00012329,2]
[401326574,1768139439770,-420.64,0.00012329,2]
[401326575,1768139439779,-350.54,0.00012329,2]
[401326576,1768139439789,-292.11,0.00012329,2]
[401326577,1768139439798,-243.43,0.00012329,2]
[401326578,1768139439807,-202.86,0.00012329,2]
[401326579,1768139439816,-169.05,0.00012329,2]
[401326580,1768139439826,-845.25,0.00012329,2]
[401326581,1768139439835,-151.88,0.00012329,2]
[401326582,1768139439844,-1030.16010818,0.00012329,2]
[401326583,1768139439854,-1030.16010818,0.00012329,2]
[401326584,1768139439863,-1030.16010818,0.00012329,2]
[401326585,1768139439872,-1030.16010818,0.00012329,2]
[401326586,1768139439881,-1030.16010818,0.00012329,2]
[401326587,1768139439890,-1030.16010818,0.00012329,2]
[401326588,1768139439900,-1030.16010818,0.00012329,2]
[401326589,1768139439909,-1030.16010818,0.00012329,2]
[401326590,1768139439918,-1030.16010818,0.00012329,2]
[401326591,1768139439927,-1030.16010818,0.00012329,2]
[401326592,1768139439936,-1030.16010818,0.00012329,2]
[401326593,1768139439945,-1030.16010818,0.00012329,2]
[401326594,1768139439954,-1030.16010818,0.00012329,2]
[401326595,1768139439963,-1030.16010818,0.00012329,2]
[401326596,1768139439973,-1030.16010818,0.00012329,2]
[401326597,1768139439982,-1030.16010818,0.00012329,2]
[401326599,1768139439991,-1030.16010818,0.00012329,2]
[401326600,1768139440000,-1030.16010818,0.00012329,2]
[401326601,1768139440009,-1030.16010818,0.00012329,2]
[401326602,1768139440018,-1030.16010818,0.00012329,2]
[401326603,1768139440030,-1030.16010818,0.00012329,2]
[401326604,1768139440040,-1030.16010818,0.00012329,2]
[401326606,1768139440049,-1030.16010818,0.00012329,2]
[401326607,1768139440058,-1030.16010818,0.00012329,2]
[401326609,1768139440067,-1030.16010818,0.00012329,2]
[401326611,1768139440076,-1030.16010818,0.00012329,2]
[401326612,1768139440086,-1030.16010818,0.00012329,2]
[401326613,1768139440095,-1030.16010818,0.00012329,2]
[401326614,1768139440105,-1030.16010818,0.00012329,2]
[401326615,1768139440114,-1030.16010818,0.00012329,2]
[401326616,1768139440123,-1030.16010818,0.00012329,2]
[401326617,1768139440133,-1030.16010818,0.00012329,2]
[401326618,1768139440142,-1030.16010818,0.00012329,2]
[401326619,1768139440152,-1030.16010818,0.00012329,2]
[401326620,1768139440162,-1030.16010818,0.00012329,2]
[401326621,1768139440172,-1030.16010818,0.00012329,2]
[401326622,1768139440181,-1030.16010818,0.00012329,2]
[401326623,1768139440191,-1030.16010818,0.00012329,2]
[401326624,1768139440200,-1030.16010818,0.00012329,2]
[401326625,1768139440210,-1030.16010818,0.00012329,2]
[401326626,1768139440219,-1030.16010818,0.00012329,2]
[401326627,1768139440229,-1030.16010818,0.00012329,2]
[401326628,1768139440239,-1030.16010818,0.00012329,2]
[401326629,1768139440248,-1030.16010818,0.00012329,2]
[401326630,1768139440257,-1030.16010818,0.00012329,2]
[401326631,1768139440266,-1030.16010818,0.00012329,2]
[401326632,1768139440275,-1030.16010818,0.00012329,2]
[401326633,1768139440284,-1030.16010818,0.00012329,2]
[401326634,1768139440294,-1030.16010818,0.00012329,2]
[401326635,1768139440303,-1030.16010818,0.00012329,2]
[401326636,1768139440313,-1030.16010818,0.00012329,2]
[401326637,1768139440322,-1030.16010818,0.00012329,2]
[401326638,1768139440332,-1030.16010818,0.00012329,2]
[401326639,1768139440342,-1030.16010818,0.00012329,2]
[401326640,1768139440351,-1030.16010818,0.00012329,2]
[401326641,1768139440361,-1030.16010818,0.00012329,2]
[401326642,1768139440373,-1030.16010818,0.00012329,2]
[401326643,1768139440382,-1030.16010818,0.00012329,2]
[401326644,1768139440392,-448.52259365,0.00012427,2]
[401326645,1768139440402,-500.0,0.00012454,2]
[401326646,1768139440411,-1423.0,0.00012454,2]
[401326647,1768139440420,-487.28484085,0.00012454,2]
[401326648,1768139440430,-263.97622948,0.00012454,2]
[401326649,1768139440440,-500.0,0.00012454,2]
[401326650,1768139440449,-264.95729538,0.00012454,2]
[401326651,1768139440459,-500.0,0.00012454,2]
[401326652,1768139440468,-823.0,0.00012508,2]
[401326653,1768139440478,-500.0,0.00012591,2]
[401326654,1768139440487,-1423.0,0.00012591,2]
[401326655,1768139440497,-500.0,0.00012591,2]
[401326656,1768139440507,-500.0,0.00012591,2]
[401326657,1768139440516,-151.88,0.00012603,2]
[401326658,1768139440526,-274.62,0.000127,2]
[401326659,1768139440535,-500.0,0.00012728,2]
[401326660,1768139440545,-1423.0,0.00012728,2]
[401326661,1768139440554,-500.0,0.00012728,2]
[401326662,1768139440563,-500.0,0.00012728,2]
[401326664,1768139440573,-500.0,0.00012865,2]
[401326666,1768139440583,-1423.0,0.00012865,2]
[401326667,1768139440592,-500.0,0.00012865,2]
[401326668,1768139440602,-500.0,0.00012865,2]
[401326670,1768139440611,-151.89900327,0.00012877,2]
[401326672,1768139440623,-1000.0,0.00012893,2]
[401326674,1768139440632,-623.15407208,0.00013002,2]
[401326675,1768139440642,-1423.0,0.00013002,2]
[401326677,1768139440651,-500.0,0.00013002,2]
[401326679,1768139440660,-500.0,0.00013002,2]
[401326681,1768139440671,-1423.0,0.00013139,2]
[401326682,1768139440680,-500.0,0.00013139,2]
[401326684,1768139440691,-500.0,0.00013139,2]
[401326686,1768139440700,-335.14474962,0.00013152,2]
[401326688,1768139440709,-1534.24,0.00013173,2]
[401326690,1768139440719,-274.62,0.000132,2]
[401326692,1768139440728,-500.0,0.00013273,2]
[401326694,1768139440738,-500.0,0.00013273,2]
[401326696,1768139440747,-500.0,0.00013273,2]
[401326698,1768139440756,-500.0,0.00013273,2]
[401326700,1768139440765,-500.0,0.00013273,2]
[401326702,1768139440774,-500.0,0.00013273,2]
[401326704,1768139440783,-500.0,0.00013273,2]
[401326706,1768139440792,-500.0,0.00013273,2]
[401326708,1768139440801,-500.0,0.00013273,2]
[401326710,1768139440810,-500.0,0.00013273,2]
[401326712,1768139440819,-500.0,0.00013273,2]
[401326714,1768139440828,-500.0,0.00013273,2]
[401326716,1768139440837,-500.0,0.00013273,2]
[401326718,1768139440847,-500.0,0.00013273,2]
[401326720,1768139440856,-500.24269708,0.00013273,2]
[401326722,1768139440865,-500.0,0.00013273,2]
[401326724,1768139440875,-500.0,0.00013273,2]
[401326726,1768139440884,-500.0,0.00013273,2]
[401326728,1768139440894,-500.0,0.00013273,2]
[401326730,1768139440903,-500.0,0.00013273,2]
[401326732,1768139440912,-522.11051368,0.00013273,2]
[401326734,1768139440921,-500.0,0.00013273,2]
[401326736,1768139440930,-500.0,0.00013273,2]
[401326738,1768139440939,-500.0,0.00013273,2]
[401326740,1768139440948,-500.0,0.00013273,2]
[401326742,1768139440958,-500.0,0.00013273,2]
[401326744,1768139440968,-500.0,0.00013273,2]
[401326746,1768139440977,-500.0,0.00013273,2]
[401326748,1768139440987,-500.0,0.00013273,2]
[401326750,1768139440996,-500.0,0.00013273,2]
[401326752,1768139441005,-500.0,0.00013273,2]
[401326754,1768139441014,-500.0,0.00013273,2]
[401326756,1768139441024,-500.0,0.00013273,2]
[401326758,1768139441033,-500.0,0.00013273,2]
[401326760,1768139441042,-500.0,0.00013273,2]
[401326762,1768139441052,-500.0,0.00013273,2]
[401326764,1768139441061,-500.0,0.00013273,2]
[401326766,1768139441070,-500.0,0.00013273,2]
[401326768,1768139441079,-500.0,0.00013273,2]
[401326770,1768139441089,-500.0,0.00013273,2]
[401326772,1768139441099,-500.0,0.00013273,2]
[401326774,1768139441108,-500.0,0.00013273,2]
[401326776,1768139441117,-500.0,0.00013273,2]
[401326778,1768139441126,-500.0,0.00013273,2]
[401326780,1768139441135,-500.0,0.00013273,2]
[401326782,1768139441146,-500.0,0.00013273,2]
[401326784,1768139441159,-500.29461734,0.00013273,2]
[401326786,1768139441169,-500.0,0.00013273,2]
[401326788,1768139441179,-500.0,0.00013273,2]
[401326790,1768139441188,-495.22027723,0.00013273,2]
[401326792,1768139441197,-402.502339,0.00013273,2]
[401326794,1768139441207,-500.0,0.00013273,2]
[401326796,1768139441216,-500.0,0.00013273,2]
[401326798,1768139441226,-1423.0,0.00013276,2]
[401326800,1768139441236,-620.9785477,0.00013276,2]
[401326802,1768139441245,-500.0,0.00013276,2]
[401326804,1768139441254,-1423.0,0.00013413,2]
[401326806,1768139441264,-500.0,0.00013413,2]
[401326808,1768139441273,-1423.0,0.0001355,2]
[401326811,1768139441283,-500.0,0.0001355,2]
[401326813,1768139441293,-300.0,0.00013673,2]
[401326815,1768139441303,-1423.0,0.00013687,2]
[401326817,1768139441313,-500.0,0.00013687,2]
[401326819,1768139441322,-1000.0,0.00013698,2]
[401326821,1768139441332,-1000.0,0.00013698,2]
[401326823,1768139441341,-1000.0,0.00013698,2]
[401326825,1768139441351,-1000.0,0.00013698,2]
[401326827,1768139441362,-1000.0,0.00013698,2]
[401326829,1768139441371,-1000.0,0.00013698,2]
[401326831,1768139441381,-593.71236514,0.00013698,2]
[401326833,1768139441390,-500.0,0.00013698,2]
[401326835,1768139441401,-500.0,0.00013698,2]
[401326837,1768139441411,-500.0,0.00013698,2]
[401326839,1768139441421,-500.0,0.00013698,2]
[401326852,1768139441534,-500.0,0.00013698,2]
[401326854,1768139441544,-500.0,0.00013698,2]
[401326856,1768139441554,-500.0,0.00013698,2]
[401326858,1768139441564,-500.0,0.00013698,2]
[401326860,1768139441574,-500.0,0.00013698,2]
[401326862,1768139441583,-500.0,0.00013698,2]
[401326864,1768139441593,-500.0,0.00013698,2]
[401326866,1768139441602,-500.0,0.00013698,2]
[401326868,1768139441611,-500.0,0.00013698,2]
[401326870,1768139441624,-500.0,0.00013698,2]
[401326872,1768139441634,-500.0,0.00013698,2]
[401326874,1768139441643,-500.0,0.00013698,2]
[401326876,1768139441651,-500.0,0.00013698,2]
[401326878,1768139441661,-500.0,0.00013698,2]
[401326880,1768139441671,-500.0,0.00013698,2]
[401326882,1768139441680,-534.57834013,0.00013698,2]
[401326884,1768139441689,-500.0,0.00013698,2]
[401326886,1768139441701,-500.0,0.00013698,2]
[401326888,1768139441710,-500.0,0.00013698,2]
[401326890,1768139441720,-500.0,0.00013698,2]
[401326892,1768139441729,-564.53140937,0.00013698,2]
[401326894,1768139441738,-500.0,0.00013698,2]
[401326896,1768139441747,-500.0,0.00013698,2]
[401326898,1768139441756,-500.0,0.00013698,2]
[401326900,1768139441765,-500.0,0.00013698,2]
[401326902,1768139441775,-500.0,0.00013698,2]
[401326904,1768139441785,-500.0,0.00013698,2]
[401326906,1768139441794,-500.0,0.00013698,2]
[401326908,1768139441802,-500.0,0.00013698,2]
[401326910,1768139441812,-500.0,0.00013698,2]
[401326912,1768139441821,-500.0,0.00013698,2]
[401326915,1768139441830,-239.37126777,0.00013698,2]
[401326917,1768139441840,-648.34,0.00013698,2]
[401326919,1768139441850,-648.34,0.00013698,2]
[401326921,1768139441859,-648.34,0.00013698,2]
[401326923,1768139441868,-648.34,0.00013698,2]
[401326925,1768139441878,-648.34,0.00013698,2]
[401326927,1768139441887,-648.34,0.00013698,2]
[401326929,1768139441896,-648.34,0.00013698,2]
[401326931,1768139441904,-648.34,0.00013698,2]
[401326933,1768139441913,-648.34,0.00013698,2]
[401326934,1768139441922,-648.34,0.00013698,2]
[401326936,1768139441932,-648.34,0.00013698,2]
[401326939,1768139441941,-648.34,0.00013698,2]
[401326941,1768139441952,-648.34,0.00013698,2]
[401326943,1768139441961,-648.34,0.00013698,2]
[401326945,1768139441970,-648.34,0.00013698,2]
[401326947,1768139441979,-648.34,0.00013698,2]
[401326949,1768139441988,-648.34,0.00013698,2]
[401326951,1768139441997,-648.34,0.00013698,2]
[401326953,1768139442006,-648.34,0.00013698,2]
[401326955,1768139442015,-648.34,0.00013698,2]
[401326957,1768139442024,-648.34,0.00013698,2]
[401326959,1768139442034,-648.34,0.00013698,2]
[401326961,1768139442043,-648.34,0.00013698,2]
[401326963,1768139442054,-648.34,0.00013698,2]
[401326964,1768139442063,-150.1,0.00013699,2]
[401326967,1768139442073,-12011.786733,0.00013699,2]
[401326969,1768139442083,-500.0,0.00013699,2]
[401326970,1768139442093,-500.0,0.00013699,2]
[401326972,1768139442101,-252.81793801,0.00013699,2]
[401326974,1768139442110,-500.0,0.00013699,2]
[401326976,1768139442119,-500.0,0.00013699,2]
[401326978,1768139442128,-500.0,0.00013699,2]
[401326980,1768139442137,-192.77974704,0.00013699,2]
[401326982,1768139442146,-500.0,0.00013699,2]
[401326984,1768139442155,-500.0,0.00013699,2]
[401326986,1768139442165,-500.0,0.00013699,2]
[401326988,1768139442174,-500.0,0.00013699,2]
[401326990,1768139442183,-500.0,0.00013699,2]
[401326992,1768139442192,-500.0,0.00013699,2]
[401326994,1768139442202,-250.0,0.00013699,2]
[401326996,1768139442211,-500.93038909,0.00013699,2]
[401326998,1768139442220,-500.0,0.00013699,2]
[401327000,1768139442230,-500.0,0.00013699,2]
[401327002,1768139442239,-500.0,0.00013699,2]
[401327004,1768139442248,-500.0,0.00013699,2]
[401327006,1768139442257,-500.0,0.00013699,2]
[401327008,1768139442266,-500.0,0.00013699,2]
[401327010,1768139442275,-500.0,0.00013699,2]
[401327012,1768139442284,-500.0,0.00013699,2]
[401327014,1768139442294,-500.0,0.00013699,2]
[401327016,1768139442303,-500.0,0.00013699,2]
[401327018,1768139442312,-500.0,0.00013699,2]
[401327020,1768139442321,-500.0,0.00013699,2]
[401327022,1768139442330,-500.0,0.00013699,2]
[401327024,1768139442339,-413.61388111,0.00013699,2]
[401327026,1768139442348,-500.0,0.00013699,2]
[401327028,1768139442369,-500.0,0.00013699,2]
[401327029,1768139442380,-500.0,0.00013699,2]
[401327031,1768139442389,-500.0,0.00013699,2]
[401327033,1768139442399,-500.0,0.00013699,2]
[401327035,1768139442408,-500.31275461,0.00013699,2]
[401327037,1768139442417,-504.31837873,0.00013699,2]
[401327039,1768139442426,-500.0,0.00013699,2]
[401327041,1768139442436,-500.0,0.00013699,2]
[401327043,1768139442446,-500.0,0.00013699,2]
[401327045,1768139442455,-500.0,0.00013699,2]
[401327047,1768139442464,-500.0,0.00013699,2]
[401327049,1768139442474,-500.0,0.00013699,2]
[401327051,1768139442484,-500.0,0.00013699,2]
[401327053,1768139442493,-500.0,0.00013699,2]
[401327055,1768139442502,-500.0,0.00013699,2]
[401327057,1768139442512,-500.0,0.00013699,2]
[401327059,1768139442521,-500.0,0.00013699,2]
[401327061,1768139442531,-500.0,0.00013699,2]
[401327063,1768139442540,-500.0,0.00013699,2]
[401327065,1768139442549,-500.0,0.00013699,2]
[401327067,1768139442559,-500.0,0.00013699,2]
[401327069,1768139442568,-500.0,0.00013699,2]
[401327071,1768139442577,-500.0,0.00013699,2]
[401327072,1768139442586,-159.05967354,0.00013699,2]
[401327074,1768139442595,-252.75899042,0.00013699,2]
[401327076,1768139442605,-500.0,0.00013699,2]
[401327079,1768139442615,-268.13097792,0.00013699,2]
[401327081,1768139442627,-500.0,0.00013699,2]
[401327082,1768139442636,-500.0,0.00013699,2]
[401327084,1768139442646,-500.0,0.00013699,2]
[401327086,1768139442655,-500.0,0.00013699,2]
[401327088,1768139442666,-500.0,0.00013699,2]
[401327090,1768139442675,-500.0,0.00013699,2]
[401327092,1768139442684,-500.0,0.00013699,2]
[401327095,1768139442695,-345.73139261,0.00013699,2]
[401327096,1768139442703,-500.0,0.00013699,2]
[401327098,1768139442713,-501.32276914,0.00013699,2]
[401327100,1768139442723,-366.95119537,0.00013699,2]
[401327102,1768139442732,-441.79967602,0.00013699,2]
[401327104,1768139442741,-295.9151759,0.00013699,2]
[401327106,1768139442750,-500.0,0.00013699,2]
[401327108,1768139442760,-500.0,0.00013699,2]
[401327110,1768139442769,-500.0,0.00013699,2]
[401327112,1768139442778,-274.62,0.000137,2]
[401327114,1768139442787,-1152.0,0.00013758,2]
[401327116,1768139442796,-178.09775665,0.00013821,2]
[401327118,1768139442806,-1000.0,0.00013821,2]
[401327120,1768139442814,-1002.2053155,0.00013821,2]
[401327122,1768139442823,-501.6206004,0.00013821,2]
[401327124,1768139442832,-502.34729237,0.00013821,2]
[401327126,1768139442841,-1000.0,0.00013821,2]
[401327128,1768139442850,-1000.0,0.00013821,2]
[401327130,1768139442859,-1000.0,0.00013821,2]
[401327132,1768139442868,-1000.0,0.00013821,2]
[401327134,1768139442877,-1000.0,0.00013821,2]
[401327136,1768139442886,-1000.0,0.00013821,2]
[401327138,1768139442895,-1000.0,0.00013821,2]
[401327140,1768139442904,-1000.0,0.00013821,2]
[401327142,1768139442913,-1000.0,0.00013821,2]
[401327144,1768139442922,-1000.0,0.00013821,2]
[401327146,1768139442931,-1000.0,0.00013821,2]
[401327148,1768139442939,-587.59486789,0.00013821,2]
[401327149,1768139442949,-1000.0,0.00013821,2]
[401327152,1768139442958,-1000.0,0.00013821,2]
[401327154,1768139442967,-1000.0,0.00013821,2]
[401327155,1768139442977,-1000.0,0.00013821,2]
[401327157,1768139442986,-1006.38443798,0.00013821,2]
[401327159,1768139442995,-1000.0,0.00013821,2]
[401327161,1768139443004,-1000.0,0.00013821,2]
[401327163,1768139443013,-1000.0,0.00013821,2]
[401327165,1768139443022,-1000.0,0.00013821,2]
[401327167,1768139443031,-1000.0,0.00013821,2]
[401327169,1768139443041,-1000.0,0.00013821,2]
[401327171,1768139443050,-1000.0,0.00013821,2]
[401327173,1768139443058,-1000.0,0.00013821,2]
[401327175,1768139443068,-1000.0,0.00013821,2]
[401327177,1768139443077,-1000.0,0.00013821,2]
[401327179,1768139443086,-1000.0,0.00013821,2]
[401327181,1768139443094,-1000.0,0.00013821,2]
[401327183,1768139443103,-501.21467235,0.00013821,2]
[401327185,1768139443112,-1000.0,0.00013821,2]
[401327187,1768139443121,-1000.0,0.00013821,2]
[401327188,1768139443130,-1000.0,0.00013821,2]
[401327190,1768139443139,-877.75810228,0.00013821,2]
[401327192,1768139443149,-204.07351011,0.00013821,2]
[401327194,1768139443158,-1000.0,0.00013821,2]
[401327196,1768139443167,-1000.0,0.00013821,2]
[401327198,1768139443177,-1000.0,0.00013821,2]
[401327200,1768139443187,-1000.0,0.00013821,2]
[401327202,1768139443197,-973.2526551,0.00013821,2]
[401327204,1768139443206,-1000.0,0.00013821,2]
[401327206,1768139443216,-500.76042299,0.00013821,2]
[401327208,1768139443226,-1423.0,0.00013824,2]
[401327210,1768139443235,-152.72644825,0.00013824,2]
[401327212,1768139443246,-1423.0,0.00013961,2]
[401327214,1768139443255,-1423.0,0.00014098,2]
[401327216,1768139443265,-1000.0,0.00014183,2]
[401327218,1768139443274,-244.0,0.00014183,2]
[401327220,1768139443283,-274.62,0.000142,2]
[401327222,1768139443292,-600.0,0.00014221,2]
[401327224,1768139443301,-1423.0,0.00014235,2]
[401327226,1768139443309,-1000.0,0.00014247,2]
[401327228,1768139443318,-875.35271766,0.00014247,2]
[401327230,1768139443327,-1000.0,0.00014247,2]
[401327232,1768139443337,-1000.0,0.00014247,2]
[401327234,1768139443346,-283.3787305,0.00014247,2]
[401327236,1768139443354,-1000.0,0.00014247,2]
[401327238,1768139443365,-1000.0,0.00014247,2]
[401327240,1768139443374,-1001.8641087,0.00014247,2]
[401327242,1768139443383,-1000.0,0.00014247,2]
[401327244,1768139443392,-1000.0,0.00014247,2]
[401327245,1768139443401,-671.67593478,0.00014247,2]
[401327246,1768139443411,-1000.0,0.00014247,2]
[401327247,1768139443420,-969.53593685,0.00014247,2]
[401327248,1768139443430,-611.85295008,0.00014247,2]
[401327249,1768139443439,-1000.0,0.00014247,2]
[401327250,1768139443448,-1000.0,0.00014247,2]
[401327251,1768139443458,-501.52224721,0.00014247,2]
[401327252,1768139443467,-1000.0,0.00014247,2]
[401327253,1768139443477,-1000.0,0.00014247,2]
[401327254,1768139443486,-1029.61129365,0.00014247,2]
[401327255,1768139443495,-1000.0,0.00014247,2]
[401327256,1768139443505,-1000.0,0.00014247,2]
[401327257,1768139443514,-1000.0,0.00014247,2]
[401327258,1768139443523,-1000.0,0.00014247,2]
[401327259,1768139443532,-1000.0,0.00014247,2]
[401327260,1768139443541,-1000.0,0.00014247,2]
[401327261,1768139443550,-1003.14554213,0.00014247,2]
[401327262,1768139443560,-1000.0,0.00014247,2]
[401327263,1768139443569,-1000.0,0.00014247,2]
[401327264,1768139443578,-1000.0,0.00014247,2]
[401327265,1768139443683,-1000.0,0.00014247,2]
[401327266,1768139443695,-1000.0,0.00014247,2]
[401327267,1768139443704,-1000.0,0.00014247,2]
[401327268,1768139443713,-1000.0,0.00014247,2]
[401327269,1768139443722,-1000.0,0.00014247,2]
[401327270,1768139443731,-1000.0,0.00014247,2]
[401327271,1768139443741,-1000.0,0.00014247,2]
[401327273,1768139443750,-710.18768542,0.00014247,2]
[401327274,1768139443759,-1000.0,0.00014247,2]
[401327276,1768139443768,-1000.0,0.00014247,2]
[401327277,1768139443777,-1000.0,0.00014247,2]
[401327278,1768139443787,-1000.0,0.00014247,2]
[401327279,1768139443796,-1000.0,0.00014247,2]
[401327280,1768139443805,-1000.0,0.00014247,2]
[401327281,1768139443814,-500.0,0.00014247,2]
[401327282,1768139443824,-1000.0,0.00014247,2]
[401327283,1768139443833,-1000.0,0.00014247,2]
[401327284,1768139443843,-638.41119879,0.00014247,2]
[401327285,1768139443852,-1000.0,0.00014247,2]
[401327286,1768139443861,-443.77041137,0.00014247,2]
[401327287,1768139443871,-1000.0,0.00014247,2]
[401327288,1768139443881,-1000.0,0.00014247,2]